bitfinex/quotes_ETHUSD_20251110
["timestamp","ask_amount","ask_price","bid_price","bid_amount"]
[1762810691211,6.2291051,3543.9,3543.8,1e-08]
[1762810691420,6.6106088,3543.9,3543.8,1e-08]
[1762810691912,6.2291051,3543.9,3543.8,1e-08]
[1762810694876,6.34223159,3543.9,3543.8,1e-08]
[1762810698501,5.26522759,3543.9,3543.8,1e-08]
[1762810698835,4.08146204,3543.9,3543.8,0.46810001]
[1762810699905,4.52404939,3543.9,3543.8,0.46810001]
[1762810700596,4.52404939,3543.9,3543.8,1e-08]
[1762810701240,4.52404939,3543.9,3543.8,0.46810001]
[1762810701901,4.52404939,3543.9,3543.8,1e-08]
[1762810702095,4.99904939,3543.9,3543.8,1e-08]
[1762810703038,4.52404939,3543.9,3543.8,1e-08]
[1762810703241,4.52404939,3543.9,3543.8,0.46810001]
[1762810705337,4.52404939,3543.9,3543.8,4.32810001]
[1762810705516,4.52504939,3543.9,3543.8,4.32810001]
[1762810706032,4.08246204,3543.9,3543.8,4.32810001]
[1762810707009,4.08246204,3543.9,3543.8,4.78620001]
[1762810707345,4.08246204,3543.9,3543.8,0.92620001]
[1762810707346,2.82275004,3543.9,3543.8,0.92620001]
[1762810707527,2.82275004,3543.9,3543.8,0.46810001]
[1762810707842,2.82275004,3543.9,3543.8,0.92620001]
[1762810711326,2.82275004,3543.9,3543.8,4.78620001]
[1762810712349,2.82275004,3543.9,3543.8,4.32810001]
[1762810713938,2.82275004,3543.9,3543.8,4.78620001]
[1762810714334,2.82275004,3543.9,3543.8,4.32810001]
[1762810714534,2.82275004,3543.9,3543.8,4.78620001]
[1762810714845,2.82275004,3543.9,3543.8,5.26502001]
[1762810717034,0.001,3543.9,3543.8,5.26502001]
[1762810718738,0.001,3543.9,3543.8,8.08684968]
[1762810718951,0.001,3544.3,3543.9,2.82170805]
[1762810719273,0.001,3544.3,3544.2,0.63]
[1762810719459,0.001,3544.3,3544.2,1.33135546]
[1762810719662,0.001,3544.7,3544.5,2.82126726]
[1762810719960,0.001,3544.7,3544.6,0.97171192]
[1762810720159,2.82061548,3545.4,3544.7,2.82106489]
[1762810720335,0.001,3545.6,3545.1,0.63]
[1762810720537,0.001,3545.6,3545.1,3.4507949]
[1762810720739,0.001,3545.6,3545.1,4.5818779]
[1762810721834,0.001,3545.6,3545.1,4.61008584]
[1762810722073,0.001,3545.6,3545.4,2.82055142]
[1762810722275,0.001,3545.6,3545.5,0.4854]
[1762810722479,0.001,3545.6,3545.5,0.9435]
[1762810722647,0.001,3545.6,3545.5,1.60197598]
[1762810722844,0.001,3545.6,3545.5,4.42245264]
[1762810723959,0.001,3545.6,3545.5,11.92245264]
[1762810724771,0.001,3545.6,3545.5,4.42245264]
[1762810724945,0.001,3545.6,3545.5,18.92245264]
[1762810726555,0.001,3545.6,3545.5,16.10197598]
[1762810727153,0.001,3545.6,3545.5,1.60197598]
[1762810729182,0.001,3545.6,3545.5,4.42245264]
[1762810729957,0.001,3545.6,3545.5,4.4506574]
[1762810730550,0.001,3545.6,3545.5,5.7103694]
[1762810730755,0.001,3545.6,3545.5,13.18216464]
[1762810732057,0.001,3545.6,3545.5,28.08766864]
[1762810732259,0.001,3545.8,3545.7,2.82031756]
[1762810732488,0.001,3545.8,3545.7,6.05255526]
[1762810732668,0.001,3545.8,3545.7,6.51065526]
[1762810733977,0.01,3545.9,3545.8,4.48545402]
[1762810734179,0.01,3545.9,3545.8,5.4571564]
[1762810734765,2.83036661,3546.9,3546.6,3.847]
[1762810734970,2.83036661,3546.9,3546.6,5.05702065]
[1762810735171,2.83036661,3546.9,3546.6,5.53052065]
[1762810735968,0.011,3546.9,3546.6,11.84052065]
[1762810736374,0.011,3546.9,3546.6,14.66012252]
[1762810736628,0.011,3546.9,3546.6,16.32533852]
[1762810736931,0.011,3546.9,3546.6,23.82533852]
[1762810737411,0.011,3546.9,3546.8,4.48465887]
[1762810737576,0.011,3546.9,3546.8,7.65938727]
[1762810737896,0.001,3547.1,3547.0,2.8192839]
[1762810738059,0.001,3547.1,3547.0,4.56348873]
[1762810738262,0.001,3547.1,3547.0,2.189512]
[1762810738461,0.001,3547.1,3547.0,6.06064949]
[1762810738786,0.001,3547.1,3547.0,20.56064949]
[1762810739097,0.001,3547.1,3547.0,17.26786559]
[1762810740102,0.001,3547.1,3547.0,6.06064949]
[1762810740299,0.001,3547.1,3547.0,3.24136559]
[1762810740463,0.001,3547.1,3547.0,7.08836559]
[1762810740660,0.001,3547.1,3547.0,9.90764949]
[1762810741878,0.001,3547.1,3547.0,10.31315349]
[1762810742625,0.01,3547.9,3547.6,3.844]
[1762810742787,0.2068,3547.9,3547.1,0.1446]
[1762810742987,0.2068,3547.9,3547.1,0.6181]
[1762810743234,2.81879053,3547.7,3547.1,0.6181]
[1762810743383,0.01,3547.9,3547.2,0.4735]
[1762810743583,2.81872626,3547.8,3547.6,0.4563]
[1762810743787,2.81869573,3547.8,3547.6,0.4563]
[1762810744033,2.81872762,3547.7,3547.6,0.4563]
[1762810744191,2.81864939,3547.8,3547.6,0.4563]
[1762810744391,2.81872762,3547.7,3547.6,0.4563]
[1762810744694,2.82859099,3547.9,3547.6,0.4563]
[1762810745029,2.81865263,3547.8,3547.6,0.4563]
[1762810745620,0.01,3547.9,3547.6,0.4563]
[1762810745820,2.82861406,3547.9,3547.7,0.4563]
[1762810746511,2.82861406,3547.9,3547.8,3.86]
[1762810747186,3.32311406,3547.9,3547.8,3.86]
[1762810747725,4.01131406,3547.9,3547.8,3.86]
[1762810751500,4.01126873,3547.9,3547.8,3.86]
[1762810751712,3.51806873,3547.9,3547.8,3.86]
[1762810752237,2.81866304,3547.8,3547.2,13.46262197]
[1762810752540,2.81872952,3547.7,3547.3,0.4735]
[1762810752749,0.01,3547.9,3547.2,11.79819035]
[1762810752949,3.02542812,3547.9,3547.2,11.79819035]
[1762810753253,0.2068,3547.9,3547.2,11.79819035]
[1762810753404,2.81869706,3547.8,3547.2,11.79819035]
[1762810753914,2.8186561,3547.8,3547.2,11.79819035]
[1762810754216,2.81880625,3547.7,3547.2,11.79819035]
[1762810754419,2.81873849,3547.7,3547.2,11.79819035]
[1762810755336,2.81874508,3547.7,3547.2,11.79819035]
[1762810755698,3.51860837,3547.9,3547.2,11.79819035]
[1762810755894,2.81880679,3547.7,3547.2,11.79819035]
[1762810756307,0.7,3547.9,3547.2,11.79819035]
[1762810756832,2.81891443,3547.5,3547.2,11.79819035]
[1762810757031,0.011,3547.9,3547.8,0.4563]
[1762810757731,0.011,3547.9,3547.6,3.86]
[1762810758135,0.4945,3547.7,3547.6,3.86]
[1762810758459,3.31322762,3547.7,3547.6,3.86]
[1762810758601,3.80642762,3547.7,3547.6,3.86]
[1762810759506,2.81912494,3547.2,3547.1,0.002]
[1762810759725,3.31362494,3547.2,3547.1,0.002]
[1762810759917,3.80682494,3547.2,3547.1,0.002]
[1762810760113,3.80682494,3547.2,3547.1,3.862]
[1762810763250,4.40340903,3547.2,3547.1,3.862]
[1762810763455,3.31362494,3547.2,3547.1,3.862]
[1762810763655,3.80682494,3547.2,3547.1,3.862]
[1762810764526,0.4945,3547.2,3547.1,3.862]
[1762810764725,3.31362494,3547.2,3547.1,3.862]
[1762810765765,3.76902494,3547.2,3547.1,3.862]
[1762810766257,3.28352494,3547.2,3547.1,3.862]
[1762810766457,2.82039711,3545.6,3545.1,0.012]
[1762810766658,3.28479711,3545.6,3545.1,0.012]
[1762810766827,4.33659891,3545.6,3545.1,0.012]
[1762810767379,3.76841953,3545.6,3545.1,0.012]
[1762810767581,5.45946856,3545.6,3545.1,0.012]
[1762810767783,6.0546781,3545.6,3545.1,0.012]
[1762810767986,5.59511865,3545.6,3545.1,0.012]
[1762810768286,6.02645568,3545.6,3545.1,0.012]
[1762810769398,4.99990911,3545.6,3545.1,0.012]
[1762810769544,5.45946856,3545.6,3545.1,0.012]
[1762810769855,6.02451354,3545.6,3545.1,0.012]
[1762810770363,5.43124614,3545.6,3545.1,0.012]
[1762810770552,4.99990911,3545.6,3545.1,0.012]
[1762810772567,5.02813153,3545.6,3545.1,0.012]
[1762810772753,4.99990911,3545.6,3545.1,0.012]
[1762810774888,5.45946856,3545.6,3545.1,0.012]
[1762810776879,5.57253205,3545.6,3545.1,0.012]
[1762810777067,5.54430963,3545.6,3545.1,0.012]
[1762810778108,5.94981363,3545.6,3545.1,0.012]
[1762810778254,4.84203133,3545.2,3545.1,1e-08]
[1762810778459,5.32565375,3545.2,3545.1,1e-08]
[1762810779086,5.87007409,3545.2,3545.1,1e-08]
[1762810779282,5.84185167,3545.2,3545.1,1e-08]
[1762810780185,9.22574811,3545.2,3545.1,1e-08]
[1762810781257,9.81619375,3545.2,3545.1,1e-08]
[1762810781975,2.82175004,3543.9,3543.8,1e-08]
[1762810782177,4.43856204,3543.9,3543.8,1e-08]
[1762810782491,5.93054678,3543.9,3543.8,1e-08]
[1762810782719,5.93054678,3543.9,3543.0,0.002]
[1762810782720,2.8225465,3542.9,3541.8,0.1466]
[1762810782995,2.8225465,3542.9,3539.2,2.97302591]
[1762810782996,2.82374202,3541.4,3541.3,0.1466]
[1762810783177,2.82374202,3541.4,3541.0,0.6087]
[1762810783178,2.8239015,3541.2,3541.0,0.1446]
[1762810783363,0.1569,3541.5,3540.8,0.1446]
[1762810783562,2.82380391,3541.4,3541.2,0.1466]
[1762810783757,2.82382176,3541.3,3541.2,0.1466]
[1762810783955,0.621,3542.0,3541.2,0.1466]
[1762810784157,2.82381158,3541.4,3541.2,0.6287]
[1762810784464,2.82366318,3541.5,3541.2,0.6287]
[1762810784662,2.82366318,3541.5,3541.3,0.4821]
[1762810784979,3.03358269,3541.4,3541.3,0.4821]
[1762810785179,0.20984067,3541.4,3541.3,0.4821]
[1762810785753,0.20984067,3541.4,3541.3,0.9462]
[1762810786007,0.20984067,3541.4,3541.3,1.33888526]
[1762810786297,0.20984067,3541.4,3541.3,0.87478526]
[1762810786500,3.03358269,3541.4,3541.3,0.4821]
[1762810786669,0.20984067,3541.4,3541.2,0.1466]
[1762810786869,2.82382176,3541.3,3541.2,0.1466]
[1762810787076,2.8239015,3541.2,3541.1,0.01]
[1762810787305,3.03365387,3541.4,3541.1,0.01]
[1762810787453,0.20984067,3541.4,3541.1,0.4921]
[1762810787663,2.82382636,3541.3,3541.1,0.4921]
[1762810788467,3.03359328,3541.4,3541.1,0.4921]
[1762810788882,2.82382176,3541.3,3541.1,0.4921]
[1762810789082,3.03360645,3541.4,3541.1,0.4921]
[1762810789313,2.82383651,3541.3,3541.1,0.4921]
[1762810789508,3.03361149,3541.4,3541.1,0.4921]
[1762810789817,2.82383241,3541.3,3541.1,0.4921]
[1762810790720,2.8239015,3541.2,3541.1,0.01]
[1762810790883,4.11660902,3541.2,3541.1,0.01]
[1762810791416,3.6329866,3541.2,3541.1,0.01]
[1762810791621,5.3480986,3541.2,3541.1,0.01]
[1762810791821,5.3480986,3541.2,3541.1,0.012]
[1762810792023,4.4282986,3541.2,3541.1,0.012]
[1762810792182,4.4282986,3541.2,3541.1,0.4941]
[1762810792389,4.4282986,3541.2,3541.1,0.012]
[1762810792682,4.8926986,3541.2,3541.1,0.012]
[1762810792912,0.8090851,3541.2,3540.5,0.4641]
[1762810793112,2.82415383,3540.9,3540.5,0.4641]
[1762810793279,2.82398333,3541.1,3540.4,0.118802]
[1762810793485,2.82430957,3540.7,3540.4,0.118802]
[1762810793987,2.82415581,3540.9,3540.6,0.4821]
[1762810794225,2.82430027,3540.7,3540.6,0.4821]
[1762810795193,2.82445982,3540.5,3540.4,0.118802]
[1762810795596,4.0842516,3540.4,3540.3,0.00421127]
[1762810795795,5.2670556,3540.4,3540.3,0.00421127]
[1762810796142,5.66753059,3540.4,3540.3,0.00421127]
[1762810796516,3.70828296,3540.1,3540.0,976.42953537]
[1762810796843,3.70828296,3540.1,3540.0,857.85163198]
[1762810796844,5.95788617,3540.1,3540.0,857.85163198]
[1762810797038,6.64228621,3540.1,3540.0,819.02444554]
[1762810797247,6.64228621,3540.1,3540.0,818.44174554]
[1762810797540,6.05286999,3540.1,3540.0,818.44174554]
[1762810797742,6.45109977,3540.1,3540.0,818.44174554]
[1762810797942,11.40489092,3540.1,3540.0,643.61681643]
[1762810798102,11.25896548,3540.1,3540.0,643.13018174]
[1762810798306,12.72902966,3540.1,3540.0,641.50414525]
[1762810798502,14.42502966,3540.1,3540.0,641.50414525]
[1762810799042,12.95496548,3540.1,3540.0,641.0668793]
[1762810799217,14.42503955,3540.1,3540.0,641.0668793]
[1762810799546,13.58875734,3540.1,3540.0,641.0668793]
[1762810799712,13.92707485,3540.1,3540.0,641.0668793]
[1762810799910,10.95307485,3540.1,3540.0,641.0668793]
[1762810800533,9.97403005,3540.1,3540.0,641.0668793]
[1762810800733,9.97147796,3540.1,3540.0,641.0668793]
[1762810801046,3.36470666,3540.1,3540.0,641.0668793]
[1762810801209,6.18998562,3540.1,3540.0,641.0668793]
[1762810801416,8.06469831,3540.1,3540.0,641.0668793]
[1762810802374,7.77275687,3540.1,3540.0,641.0668793]
[1762810802564,4.6096604,3540.1,3540.0,641.0668793]
[1762810802762,6.68464892,3540.1,3540.0,641.0668793]
[1762810802948,6.60429869,3540.1,3540.0,641.0310611]
[1762810803252,3.58357232,3540.1,3540.0,641.0310611]
[1762810803411,6.80402897,3540.1,3540.0,641.0310611]
[1762810803637,7.20953297,3540.1,3540.0,641.0310611]
[1762810804835,6.47714888,3540.1,3540.0,641.0310611]
[1762810805349,7.96641739,3540.1,3540.0,641.0310611]
[1762810805517,7.62711556,3540.1,3540.0,641.0310611]
[1762810805719,7.91941284,3540.1,3540.0,641.0310611]
[1762810806231,7.1838546,3540.1,3540.0,641.0310611]
[1762810806432,7.11799718,3540.1,3540.0,641.0310611]
[1762810806811,7.52350118,3540.1,3540.0,641.0310611]
[1762810807214,12.2411548,3540.1,3540.0,57.49760424]
[1762810807457,3.98967012,3540.1,3540.0,55.20421825]
[1762810807653,3.65236992,3540.1,3540.0,55.20421825]
[1762810808247,5.34836992,3540.1,3540.0,55.20421825]
[1762810808765,6.77441524,3540.1,3540.0,55.20421825]
[1762810809117,5.38618917,3540.1,3540.0,55.20421825]
[1762810809316,5.43618917,3540.1,3540.0,53.90621825]
[1762810809547,6.60747877,3540.1,3540.0,50.31621825]
[1762810809715,6.87942649,3540.1,3540.0,50.31621825]
[1762810809921,6.43610324,3540.1,3540.0,50.31621825]
[1762810810119,9.41010324,3540.1,3540.0,50.31621825]
[1762810810545,8.58600239,3540.1,3540.0,50.31621825]
[1762810810719,9.00459924,3540.1,3540.0,50.31621825]
[1762810810920,9.09874211,3540.1,3540.0,50.31621825]
[1762810811250,11.06596564,3540.1,3540.0,50.31621825]
[1762810811454,10.64896278,3540.1,3540.0,50.31621825]
[1762810811659,8.68014526,3540.1,3540.0,50.31621825]
[1762810811954,8.27464126,3540.1,3540.0,50.31621825]
[1762810812260,8.13456911,3540.1,3540.0,50.31621825]
[1762810812429,6.65815392,3540.1,3540.0,50.31621825]
[1762810812634,8.1361823,3540.1,3540.0,50.31621825]
[1762810812833,8.57949291,3540.1,3540.0,50.28398187]
[1762810813249,8.36117653,3540.1,3540.0,50.28398187]
[1762810813420,7.10146453,3540.1,3540.0,50.28398187]
[1762810813621,7.50696853,3540.1,3540.0,50.28398187]
[1762810813816,8.76668053,3540.1,3540.0,50.28398187]
[1762810814133,9.10378921,3540.1,3540.0,50.28398187]
[1762810814524,10.58253737,3540.1,3540.0,50.28398187]
[1762810814761,9.83992469,3540.1,3540.0,50.28398187]
[1762810815124,8.36117653,3540.1,3540.0,50.28398187]
[1762810815461,10.24542869,3540.1,3540.0,50.28398187]
[1762810816963,5.79268053,3540.1,3540.0,50.28398187]
[1762810817123,6.33668583,3540.1,3540.0,50.28398187]
[1762810817755,5.89337522,3540.1,3540.0,50.28398187]
[1762810817939,4.90609787,3540.1,3540.0,50.28398187]
[1762810818445,4.90609787,3540.1,3540.0,50.08151357]
[1762810819433,6.38484603,3540.1,3540.0,50.08151357]
[1762810819634,0.58998187,3540.1,3540.0,50.08151357]
[1762810819842,0.001,3540.1,3540.0,50.55561357]
[1762810820163,0.58998187,3540.1,3540.0,51.02891357]
[1762810820337,0.001,3540.1,3540.0,50.55561357]
[1762810821466,0.001,3540.1,3540.0,51.02891357]
[1762810822984,0.001,3540.1,3540.0,50.99990083]
[1762810824385,0.001,3540.1,3540.0,50.82131528]
[1762810825862,0.58998187,3540.1,3540.0,50.82131528]
[1762810826058,0.001,3540.1,3540.0,50.82131528]
[1762810826263,0.001,3540.1,3540.0,52.11442777]
[1762810829288,0.001,3540.1,3540.0,50.82131528]
[1762810830463,0.001,3540.1,3540.0,50.66532991]
[1762810832781,0.001,3540.1,3540.0,50.20482991]
[1762810833114,0.001,3540.1,3540.0,50.65872991]
[1762810836500,0.001,3540.1,3540.0,49.84231309]
[1762810837193,0.001,3540.1,3540.0,49.35541309]
[1762810837393,0.001,3540.1,3540.0,49.84231309]
[1762810837906,0.001,3540.1,3540.0,50.29621309]
[1762810839313,0.001,3540.1,3540.0,49.84231309]
[1762810840668,0.001,3540.1,3540.0,50.29621309]
[1762810842514,0.001,3540.1,3540.0,50.01105463]
[1762810848119,0.001,3540.1,3540.0,52.64275875]
[1762810848321,0.001,3540.1,3540.0,55.4676175]
[1762810848521,0.001,3540.1,3540.0,55.29714528]
[1762810850131,0.001,3540.1,3540.0,55.70264928]
[1762810850427,0.001,3540.1,3540.0,52.47228653]
[1762810850823,0.001,3540.1,3540.0,49.38668241]
[1762810851023,0.001,3540.1,3540.0,49.84058241]
[1762810851212,0.001,3540.1,3540.0,48.89978241]
[1762810853732,0.001,3540.1,3540.0,49.38668241]
[1762810854037,0.4663,3540.1,3540.0,48.89978241]
[1762810854209,0.9438,3540.1,3540.0,48.89978241]
[1762810854412,2.19125727,3540.1,3540.0,48.89978241]
[1762810854603,3.88469569,3540.1,3540.0,48.6244741]
[1762810855335,4.88208965,3540.1,3540.0,48.6244741]
[1762810855538,3.88469569,3540.1,3540.0,48.6244741]
[1762810857219,4.88152432,3540.1,3540.0,48.6244741]
[1762810858212,3.88469569,3540.1,3540.0,48.6244741]
[1762810858783,3.88469569,3540.1,3540.0,48.18119531]
[1762810858921,7.2504592,3540.1,3540.0,46.65231805]
[1762810859246,10.55336065,3540.1,3540.0,44.35872174]
[1762810859442,8.56388993,3540.1,3540.0,44.35872174]
[1762810859646,10.94512416,3540.1,3540.0,44.35872174]
[1762810859939,7.97112416,3540.1,3540.0,44.35872174]
[1762810860506,10.94512416,3540.1,3540.0,44.35872174]
[1762810860746,11.7804324,3540.1,3540.0,0.12180869]
[1762810860961,0.455504,3539.3,3539.2,0.002]
[1762810861167,6.47263202,3539.3,3539.2,0.002]
[1762810861317,5.28653126,3539.3,3539.2,0.002]
[1762810861643,5.67871163,3539.3,3539.2,0.002]
[1762810861845,5.65048921,3539.3,3539.2,0.002]
[1762810862022,6.09392673,3539.3,3539.2,0.002]
[1762810862614,5.72996878,3539.3,3539.2,0.002]
[1762810863374,4.51124711,3539.3,3539.2,0.002]
[1762810863646,4.53946953,3539.3,3539.2,0.002]
[1762810864463,6.0227629,3539.3,3539.2,0.002]
[1762810864765,4.06780959,3539.3,3539.2,0.002]
[1762810864931,4.09603201,3539.3,3539.2,0.002]
[1762810865130,5.57892284,3539.3,3539.2,0.002]
[1762810865334,4.06780959,3539.3,3539.2,0.002]
[1762810865653,4.53946685,3539.3,3539.2,0.002]
[1762810866440,6.02235768,3539.3,3539.2,0.002]
[1762810866635,0.6679,3538.3,3538.2,4.06986354]
[1762810866852,1.03185795,3538.3,3538.2,3.80986354]
[1762810867063,1.49725795,3538.3,3538.2,3.80986354]
[1762810867264,2.34716807,3538.3,3538.2,3.80986354]
[1762810867769,3.60688007,3538.3,3538.2,3.80986354]
[1762810870266,3.24292212,3538.3,3538.2,3.80986354]
[1762810870471,3.60688007,3538.3,3538.2,3.80986354]
[1762810871053,3.24292212,3538.3,3538.2,3.80986354]
[1762810871452,3.68633945,3538.3,3538.2,3.80986354]
[1762810872650,0.92671733,3538.3,3538.2,3.52002294]
[1762810873159,2.18642933,3538.3,3538.2,3.23002294]
[1762810873789,2.65182933,3538.3,3538.2,3.23002294]
[1762810874376,2.18642933,3538.3,3538.2,3.23002294]
[1762810875358,2.81182933,3538.3,3538.2,3.23002294]
[1762810875879,1.903012,3538.3,3538.2,3.23002294]
[1762810876079,2.368412,3538.3,3538.2,3.23002294]
[1762810876267,2.369412,3538.3,3538.2,3.23002294]
[1762810878912,1.904012,3538.3,3538.2,3.04109098]
[1762810879471,2.369412,3538.3,3538.2,3.04109098]
[1762810879890,1.904012,3538.3,3538.2,3.04109098]
[1762810880175,2.369412,3538.3,3538.2,3.04109098]
[1762810881094,2.96300878,3538.3,3538.2,3.04109098]
[1762810881312,2.96300878,3538.3,3538.2,2.85109098]
[1762810883373,2.01430878,3538.3,3538.2,3.34229098]
[1762810883610,2.01430878,3538.3,3538.2,3.80459098]
[1762810883810,0.161,3538.3,3538.2,3.80459098]
[1762810884695,0.161,3538.3,3538.2,4.19952008]
[1762810884926,0.161,3538.3,3538.2,3.84173062]
[1762810885510,0.001,3538.7,3538.2,3.84173062]
[1762810885719,0.001,3538.7,3538.6,0.4597]
[1762810886207,0.001,3538.7,3538.6,0.9285]
[1762810890578,0.001,3539.1,3538.6,0.9285]
[1762810890744,0.001,3539.1,3539.0,0.4597]
[1762810890939,0.001,3539.1,3539.0,0.72171975]
[1762810892677,0.001,3539.1,3539.0,1.07648068]
[1762810893567,0.001,3539.1,3539.0,0.72171975]
[1762810896869,0.001,3539.1,3539.0,0.52439074]
[1762810897984,0.001,3539.5,3539.0,3.34999054]
[1762810898204,0.001,3539.5,3539.4,0.1527]
[1762810898546,0.001,3539.5,3539.4,0.3054]
[1762810898893,0.001,3539.5,3539.4,3.72636777]
[1762810899069,0.001,3539.5,3539.4,0.90103015]
[1762810899273,0.001,3539.5,3539.4,3.72636777]
[1762810899650,0.001,3539.5,3539.4,0.90103015]
[1762810900961,0.001,3539.5,3539.4,3.13073762]
[1762810901682,0.001,3539.5,3539.4,0.3054]
[1762810902658,0.001,3539.5,3539.4,3.53624162]
[1762810902860,0.001,3540.1,3539.7,2.82506309]
[1762810903052,0.001,3540.1,3540.0,0.1527]
[1762810903260,0.001,3540.1,3540.0,0.83366219]
[1762810903590,0.001,3540.1,3540.0,0.98636219]
[1762810909014,0.001,3540.1,3540.0,0.69820408]
[1762810910916,0.001,3540.1,3540.0,7.38306283]
[1762810911318,0.001,3540.1,3540.0,3.52306283]
[1762810912620,0.001,3540.1,3540.0,3.92856683]
[1762810914226,0.001,3540.1,3539.3,15.759712]
[1762810914384,0.001,3540.1,3539.8,2.82500754]
[1762810915214,0.001,3540.1,3539.8,2.67670708]
[1762810915395,0.001,3540.1,3539.8,2.82496549]
[1762810915802,0.001,3540.1,3540.0,2.82485875]
[1762810916000,0.001,3540.1,3540.0,3.38984372]
[1762810916490,0.001,3540.1,3540.0,0.56498497]
[1762810916992,0.001,3540.1,3539.8,2.82500692]
[1762810917187,0.001,3540.1,3538.6,0.002]
[1762810917503,0.001,3540.1,3539.5,2.82521994]
[1762810917708,0.001,3540.1,3539.6,2.82517383]
[1762810918007,0.001,3540.1,3539.6,3.10769121]
[1762810918193,0.001,3540.1,3539.6,2.82517383]
[1762810919427,0.001,3540.1,3539.4,2.82532266]
[1762810919428,0.001,3540.1,3539.7,2.82509588]
[1762810919721,0.001,3540.1,3539.4,2.82532266]
[1762810919722,0.001,3540.1,3539.6,2.82514029]
[1762810920438,0.001,3540.1,3539.6,2.82516569]
[1762810920938,0.001,3540.1,3539.7,2.82503444]
[1762810921240,0.001,3540.1,3539.7,2.47362768]
[1762810921437,0.001,3540.1,3539.6,2.82514927]
[1762810922042,0.001,3540.1,3539.7,2.8250757]
[1762810922204,0.001,3540.1,3539.8,2.82501836]
[1762810922400,0.001,3540.1,3539.7,0.28250757]
[1762810922607,0.6466,3539.8,3539.0,0.002]
[1762810922815,0.001,3540.1,3539.0,0.002]
[1762810923054,0.4675,3540.1,3539.0,0.002]
[1762810923234,0.4675,3540.1,3539.0,0.407504]
[1762810923608,0.4675,3540.1,3539.0,0.002]
[1762810924113,0.4675,3540.1,3539.1,2.82557256]
[1762810924336,0.4675,3540.1,3539.1,3.39090328]
[1762810924535,0.4675,3540.1,3539.1,0.56533072]
[1762810925050,0.001,3540.1,3539.1,3.39090327]
[1762810925250,0.001,3540.1,3539.2,2.82544237]
[1762810925647,0.4665,3540.0,3539.1,0.56533072]
[1762810926053,0.192,3539.9,3539.1,3.39089586]
[1762810926360,0.192,3539.9,3539.1,0.56533072]
[1762810926560,0.6585,3539.9,3539.1,0.56533072]
[1762810927256,0.6585,3539.9,3539.0,0.002]
[1762810927257,0.4665,3539.8,3539.0,0.002]
[1762810931769,0.001,3540.1,3539.0,0.002]
[1762810931977,0.001,3540.1,3539.0,2.82765004]
[1762810932277,0.001,3540.1,3539.2,2.8254959]
[1762810932420,0.001,3540.1,3539.2,3.39081049]
[1762810932625,0.4675,3540.1,3539.2,3.39081049]
[1762810933022,0.4675,3540.1,3539.2,0.56531459]
[1762810933348,0.4675,3540.1,3539.2,3.17291827]
[1762810934424,0.4675,3540.1,3539.2,0.3474275]
[1762810934653,0.4675,3540.1,3539.0,2.82758937]
[1762810935040,0.4675,3540.1,3539.1,2.82556674]
[1762810935565,0.4675,3540.1,3539.2,2.82549433]
[1762810937747,0.4675,3540.1,3539.3,2.82541272]
[1762810937955,0.4675,3540.1,3539.2,2.82545401]
[1762810938263,0.4675,3540.1,3539.1,3.10830429]
[1762810939391,0.4675,3540.1,3539.1,2.76420067]
[1762810939971,0.4675,3540.1,3539.0,2.82761239]
[1762810940566,0.4675,3540.1,3539.0,0.407504]
[1762810940947,0.4675,3540.1,3539.0,0.002]
[1762810942674,0.4675,3540.1,3539.0,0.28477848]
[1762810942937,0.4675,3540.1,3539.0,2.82764846]
[1762810943390,0.4675,3540.1,3539.0,0.002]
[1762810943589,0.4675,3540.1,3538.8,2.47644435]
[1762810943796,0.4675,3540.1,3538.9,2.8257362]
[1762810944278,0.4675,3540.1,3539.0,2.82564287]
[1762810944480,0.4675,3540.1,3539.1,0.28256429]
[1762810945228,0.4675,3540.1,3539.0,0.002]
[1762810945394,0.4675,3540.1,3538.8,2.82573718]
[1762810945775,0.4675,3540.1,3538.9,2.82571749]
[1762810946000,0.4675,3540.1,3538.3,4.34701852]
[1762810946197,0.4675,3540.1,3538.9,2.82571292]
[1762810946411,0.4675,3540.1,3539.0,0.28257129]
[1762810947908,0.4675,3540.1,3539.1,2.82550003]
[1762810948580,0.4675,3540.1,3539.0,3.10819685]
[1762810948973,0.4675,3540.1,3539.0,0.28257129]
[1762810949221,0.4675,3540.1,3539.0,3.10821347]
[1762810949422,0.4675,3540.1,3538.6,2.82593349]
[1762810949423,0.4675,3540.1,3539.1,3.13636188]
[1762810949996,0.4675,3540.1,3539.2,2.82546703]
[1762810950202,0.4675,3540.1,3539.1,0.31082135]
[1762810950402,0.4675,3540.1,3539.0,2.82560242]
[1762810950714,0.4675,3540.1,3539.1,2.8255637]
[1762810950878,0.4675,3540.1,3539.2,2.82549728]
[1762810951505,0.4675,3540.1,3539.2,2.63889991]
[1762810951717,0.4675,3540.1,3539.3,2.82535572]
[1762810952027,0.4675,3540.1,3539.4,0.28253557]
[1762810952028,0.001,3540.1,3539.4,0.28253557]
[1762810952497,0.4987,3540.1,3539.4,0.28253557]
[1762810952885,0.4987,3540.1,3539.3,2.82541625]
[1762810953543,0.4987,3540.1,3539.2,2.82547228]
[1762810953878,0.4987,3540.1,3539.1,2.82553974]
[1762810954180,0.4987,3540.1,3539.1,2.82557434]
[1762810954684,0.4987,3540.1,3539.0,2.82562475]
[1762810954885,0.4987,3540.1,3539.1,3.43125261]
[1762810955085,0.4987,3540.1,3539.1,0.60568815]
[1762810955382,0.4987,3540.1,3538.9,2.8256884]
[1762810955584,0.4987,3540.1,3539.2,2.82549398]
[1762810955984,0.001,3540.1,3539.2,2.82544944]
[1762810956322,0.4987,3540.1,3539.3,0.56510332]
[1762810956626,0.4987,3540.1,3538.7,0.405504]
[1762810956808,0.4987,3540.1,3539.2,2.82543779]
[1762810957532,0.4987,3540.1,3539.2,2.64700382]
[1762810958099,0.4987,3540.1,3539.3,2.82539419]
[1762810958299,0.4987,3540.1,3539.4,0.56509073]
[1762810959708,0.4987,3540.1,3539.4,3.39041705]
[1762810960036,0.4987,3540.1,3539.4,0.56509073]